[Event "Dutch Open 2022"]
[Site "Dieren"]
[Date "2022.07.29"]
[Round "4.13"]
[White "Pijkeren, Jan"]
[Black "Op den Dries, Johan"]
[Result "1-0"]
[ECO "A27"]
[WhiteElo "2196"]
[BlackElo "2104"]
[Annotator "TA"]
[PlyCount "89"]
[EventDate "2022.07.14"]
[EventType "swiss"]
[EventCountry "NED"]
[SourceTitle "playchess.com"]
[Source "ChessBase"]
[SourceQuality "1"]
[TimeControl "40/5400+30:1800+30"]

{[%evp 9,89,47,48,45,49,-20,165,156,161,170,191,143,127,100,103,100,106,88,98,-25,-26,-8,-21,-22,-27,-44,-14,-20,-8,-15,-18,-46,-11,-14,0,-22,-5,-39,-39,-90,-7,-25,0,0,0,0,0,0,0,0,27,37,28,12,41,32,102,76,122,109,209,209,419,409,644,626,785,777,732,700,800,764,1036,967,1708,1377,29972,29972,29966,8130,5230,5181]} 1. c4 {[%emt 0:00:04]} e5 {[%emt 0:00:03]} 2. g3 {[%emt 0:00:04]} Nc6 {[%emt 0:00:03]} 3. Nc3 {[%emt 0:00:04]} f5 {[%emt 0:00:05]} 4. Nf3 {[%emt 0:00:03]} Nf6 {[%emt 0:05:28]} 5. d4 {[%emt 0:00:13]} e4 {[%emt 0:00:34]} 6. Nh4 {[%emt 0:00:10] A27: English Opening: Three Knights Variation.} d6 {[%emt 0:04:26]} 7. Bh3 {[%emt 0:01:20] [#]} (7. Ng2 $14) 7... f4 $146 {[%emt 0:05:39]} (7... g6 $11 {and Black is okay.}) ({Predecessor:} 7... g6 8. Bg5 Bg7 9. Qd2 Ne7 10. f3 exf3 11. Nxf3 d5 12. cxd5 Nexd5 13. Ne5 Nxc3 14. Qxc3 {½-½ (42) Lai,H (2416)-Kunin,V (2592) Amsterdam 2016}) 8. Bxc8 $18 {[%emt 0:02:53] White is clearly better.} Qxc8 {[%emt 0:00:02]} 9. Bxf4 {[%emt 0:02:04]} Qh3 {[%emt 0:00:06]} 10. Qd2 {[%emt 0:17:42]} (10. Qa4 $18 {d5 is the strong threat.} Kf7 11. d5) 10... Be7 $16 {[%emt 0:00:19]} 11. O-O-O {[%emt 0:05:44]} O-O {[%emt 0:01:01]} 12. f3 {[%emt 0:11:46]} Rae8 {[%emt 0:10:10]} 13. Bg5 {[%emt 0:12:26]} Bd8 {[%emt 0:07:10]} 14. fxe4 {[%emt 0:16:19]} (14. Bxf6 $16 Bxf6 15. Nxe4) 14... Nxe4 $11 {[%emt 0:02:36]} 15. Nxe4 {[%emt 0:00:33]} Rxe4 {[%emt 0:00:05]} 16. Bxd8 {[%emt 0:04:31]} Rxd4 {[%emt 0:00:55]} 17. Qc3 {[%emt 0:05:44]} Rxd1+ {[%emt 0:00:15]} (17... Qg4 $5 {[%cal Rd4c4]} 18. Rxd4 (18. Bxc7 $2 Rxc4 19. Bxd6 Rxc3+ 20. bxc3 Re8 $19) 18... Nxd4 $15) 18. Rxd1 {[%emt 0:00:10]} Rxd8 {[%emt 0:00:30]} 19. Nf3 {[%emt 0:00:50]} Re8 {[%emt 0:01:01]} 20. Qd3 {[%emt 0:01:35]} Qh6+ {[%emt 0:03:23]} 21. Rd2 {[%emt 0:01:45]} Kh8 {[%emt 0:05:07]} 22. h4 {[%emt 0:02:02]} Qf6 {[%emt 0:04:10]} 23. a3 {[%emt 0:06:04]} h6 {[%emt 0:04:29]} 24. Kc2 {[%emt 0:03:51]} (24. Qd5 $1 $15) 24... Ne5 {[%emt 0:00:36]} (24... b6 $17) 25. Qe4 {[%emt 0:00:37]} b6 {[%emt 0:03:41]} 26. Rd5 {[%emt 0:00:50]} Qg6 {[%emt 0:01:40]} 27. Qxg6 {[%emt 0:00:12]} Nxg6 {[%emt 0:00:04][%mdl 4096] Endgame KRN-KRN} 28. Kd2 {[%emt 0:00:47]} Re4 {[%emt 0:03:04]} 29. Rd4 {[%emt 0:00:40]} Re6 {[%emt 0:00:04]} 30. Kd3 {[%emt 0:01:13]} Kg8 {[%emt 0:03:08]} 31. Re4 {[%emt 0:00:03]} Rxe4 {[%emt 0:00:01]} 32. Kxe4 {[%emt 0:00:05] Hoping for Kd5. KN-KN} Kf7 {[%emt 0:00:12] [#]} ({Black should try} 32... c6 $1 $14) 33. Nd4 $1 $16 {[%emt 0:01:09]} Ne5 {[%emt 0:00:32]} (33... a6 $142) 34. Kd5 {[%emt 0:00:55]} a6 {[%emt 0:02:36] Against Nb5} (34... Ng6 $16) 35. b3 $18 {[%emt 0:00:05]} g6 $2 {[%emt 0:06:04]} (35... Ke8 36. Ne6 Kd7 37. Nxg7 Ng4) 36. Ne6 {[%emt 0:00:47]} Ng4 {[%emt 0:02:17]} (36... Ke7 $142) 37. Nxc7 {[%emt 0:00:39]} Ne3+ {[%emt 0:00:04]} 38. Kxd6 {[%emt 0:01:31]} Nf5+ {[%emt 0:00:04]} 39. Kc6 {[%emt 0:00:11]} Nxg3 {[%emt 0:00:04]} 40. Kxb6 {[%emt 0:00:10]} Nf5 {[%emt 0:01:33]} 41. Kxa6 {[%emt 0:12:44]} Nxh4 {[%emt 0:00:15]} 42. b4 {[%emt 0:00:40][%cal Bb3b4,Bb4b5,Bb5b6,Bb6b7][%mdl 32] [#] White threatens b5 and mate.} Ke7 {[%emt 0:04:09]} 43. b5 {[%emt 0:01:22]} Kd7 {[%emt 0:00:39]} 44. b6 {[%emt 0:00:11] Nd5 would kill now.} Nf5 {[%emt 0:01:36]} 45. b7 {[%emt 0:00:34] Weighted Error Value: White=0.20 (precise) /Black=0.65} 1-0

[Event "Dutch Open 2022"]
[Site "Dieren"]
[Date "2022.07.29"]
[Round "4.14"]
[White "Kumar, Prajit Sai"]
[Black "Ochs, Daniel Elias"]
[Result "1-0"]
[ECO "D02"]
[WhiteElo "2040"]
[BlackElo "2156"]
[Annotator "TA"]
[PlyCount "97"]
[EventDate "2022.07.14"]
[EventType "swiss"]
[EventCountry "NED"]
[SourceTitle "playchess.com"]
[Source "ChessBase"]
[SourceQuality "1"]
[TimeControl "40/5400+30:1800+30"]

{[%evp 9,97,4,4,0,3,4,0,0,0,0,0,-3,0,-5,-6,-25,-17,-21,-11,-16,-16,-15,0,-2,8,0,32,34,23,0,43,0,74,53,87,80,81,65,85,52,59,66,89,64,109,72,74,67,72,71,69,71,82,82,85,79,75,84,112,89,80,0,99,60,116,87,158,165,167,168,197,197,29967,29968,29969,29965,29965,29966,29972,29973,29972,29974,29975,29976,29977,29976,29976,29976,29977,29978]} 1. d4 {[%emt 0:00:02]} d5 {[%emt 0:00:07]} 2. Nf3 {[%emt 0:00:05]} Nf6 {[%emt 0:04:09]} 3. c3 {[%emt 0:00:07]} e6 {[%emt 0:06:03]} 4. Bf4 {[%emt 0:00:21]} Bd6 {[%emt 0:01:42]} 5. e3 {[%emt 0:00:18]} O-O {[%emt 0:01:36]} 6. Nbd2 {[%emt 0:00:06] D02: 1 d4 d5 2 Nf3 sidelines, including 2...Nf6 3 g3 and 2...Nf6 3 Bf4.} Bxf4 {[%emt 0:05:38]} 7. exf4 {[%emt 0:00:10]} b6 {[%emt 0:00:20]} 8. Bd3 {[%emt 0:00:47] The position is equal.} Ba6 {[%emt 0:01:13]} 9. Bxa6 {[%emt 0:00:08]} Nxa6 {[%emt 0:00:03]} 10. Qe2 {[%emt 0:00:12]} Nb8 {[%emt 0:01:41]} 11. O-O {[%emt 0:00:10]} c5 {[%emt 0:04:19]} 12. Rad1 {[%emt 0:03:43]} Nc6 {[%emt 0:09:30]} 13. Ne5 {[%emt 0:01:03] [#]} Rc8 $146 {[%emt 0:02:10]} ({Predecessor:} 13... Ne7 14. Ndf3 Ne4 15. Ng5 Nxg5 16. fxg5 Nf5 17. Qh5 cxd4 18. Nc6 g6 19. Qg4 Qd6 20. Nxd4 Nxd4 21. Rxd4 Qe5 22. Rfd1 Rac8 {½-½ (22) Winants,L (2513)-Khenkin,I (2547) Belgium 2018}) 14. Ndf3 {[%emt 0:00:37]} Qc7 {[%emt 0:05:19]} 15. g3 {[%emt 0:00:29]} Ne4 {[%emt 0:06:21]} 16. Rfe1 {[%emt 0:05:09]} Rfe8 {[%emt 0:04:35]} (16... Nd6 {keeps more tension.} 17. Ng5 cxd4 18. Nxc6 Qxc6 19. Qd3 g6) 17. dxc5 {[%emt 0:04:23]} Nxc5 {[%emt 0:06:19]} 18. Nxc6 {[%emt 0:08:56]} Qxc6 {[%emt 0:00:20]} 19. Nd4 {[%emt 0:00:06]} Qb7 {[%emt 0:06:49]} 20. h4 {[%emt 0:08:53]} f6 {[%emt 0:04:35]} (20... h6 $11) 21. c4 {[%emt 0:04:23]} dxc4 {[%emt 0:07:42]} 22. Qxc4 {[%emt 0:03:04]} Qd5 {[%emt 0:01:04]} 23. Qxd5 {[%emt 0:02:29]} exd5 {[%emt 0:00:09]} 24. Rxe8+ {[%emt 0:56:49]} Rxe8 $16 {[%emt 0:00:12][%mdl 4096] Endgame KRN-KRN} 25. Kf1 {[%emt 0:00:00]} Na4 {[%emt 0:03:51]} 26. Rd2 {[%emt 0:00:00]} Rd8 {[%emt 0:02:02]} 27. f5 {[%emt 0:00:00]} Rd7 {[%emt 0:03:48]} 28. f3 {[%emt 0:00:00]} a5 {[%emt 0:01:38]} 29. Kf2 {[%emt 0:00:00]} Kf7 {[%emt 0:01:44]} 30. Ne6 {[%emt 0:00:00]} Nc5 {[%emt 0:02:13] [#]} 31. Nf4 {[%emt 0:00:00] White is more active.} d4 {[%emt 0:00:09]} 32. Ne2 {[%emt 0:00:00]} d3 {[%emt 0:00:12]} 33. Nf4 {[%emt 0:00:00]} Rd8 {[%emt 0:01:37]} 34. Ke3 {[%emt 0:00:00]} Re8+ {[%emt 0:00:04]} 35. Kf2 {[%emt 0:00:00]} Rd8 {[%emt 0:00:07]} 36. g4 {[%emt 0:00:00]} a4 {[%emt 0:01:59]} (36... g5 $14 37. fxg6+ hxg6) 37. Ke3 {[%emt 0:00:00]} Ke7 {[%emt 0:03:16]} ({Black should try} 37... Re8+ 38. Kf2 Rc8) 38. Nxd3 {[%emt 0:00:00]} Nxd3 {[%emt 0:01:54]} 39. Rxd3 {[%emt 0:00:00] KR-KR} Rc8 {[%emt 0:00:08] [#]} 40. Rc3 $1 {[%emt 0:00:00] Prevents Rc2.} Rc5 {[%emt 0:03:20]} (40... Rb8 $18 41. Rc7+ Kf8) 41. Rxc5 {[%emt 0:01:13] White mates.} bxc5 {[%emt 0:30:28] KP-KP} 42. Kd3 {[%emt 0:01:08]} Kd6 {[%emt 0:00:07]} 43. Kc4 {[%emt 0:00:05]} Kc6 {[%emt 0:00:04]} 44. b4 {[%emt 0:01:55]} axb3 {[%emt 0:00:12]} 45. Kxb3 {[%emt 0:00:05]} Kb5 {[%emt 0:00:07]} 46. Kc3 {[%emt 0:00:21]} c4 {[%emt 0:00:23]} 47. a3 {[%emt 0:01:18][%cal Ba2a3,Ba3a4][%mdl 32]} Kc5 {[%emt 0:00:06]} 48. a4 {[%emt 0:00:04]} h6 {[%emt 0:00:09]} 49. h5 {[%emt 0:00:19] Weighted Error Value: White=0.10 (very precise) /Black=0.27 (precise)} 1-0

[Event "Dutch Open 2022"]
[Site "Dieren"]
[Date "2022.07.29"]
[Round "4.15"]
[White "Saketh, Pedagandham"]
[Black "Achuthan, Dylan"]
[Result "1/2-1/2"]
[ECO "B22"]
[WhiteElo "1928"]
[BlackElo "1989"]
[Annotator "TA"]
[PlyCount "60"]
[EventDate "2022.07.14"]
[EventType "swiss"]
[EventCountry "NED"]
[SourceTitle "playchess.com"]
[Source "ChessBase"]
[SourceQuality "1"]
[TimeControl "40/5400+30:1800+30"]

{[%evp 17,60,11,21,-8,-6,-43,-21,-36,-24,-46,-42,-37,-46,-41,-38,-47,-48,-68,-34,-51,-45,-132,-132,-132,-127,-129,-132,-156,-137,-136,-117,-139,-45,-89,-29,-41,-21,-27,-28,-52,-25,-30,-27,-48,0]} 1. e4 {[%emt 0:08:35]} c5 {[%emt 0:00:05]} 2. c3 {[%emt 0:00:06]} d5 {[%emt 0:00:05]} 3. exd5 {[%emt 0:00:12]} Qxd5 {[%emt 0:00:05]} 4. d4 {[%emt 0:00:06]} Nc6 {[%emt 0:00:03]} 5. Nf3 {[%emt 0:00:28]} Bg4 {[%emt 0:00:05]} 6. Be2 {[%emt 0:01:14]} cxd4 {[%emt 0:00:19]} 7. cxd4 {[%emt 0:01:27]} e6 {[%emt 0:00:08]} 8. O-O {[%emt 0:00:15]} Nf6 {[%emt 0:01:13]} 9. Nc3 {[%emt 0:00:27]} Qa5 {[%emt 0:01:28]} 10. Re1 {[%emt 0:02:48] B22: Sicilian: 2 c3.} Bb4 {[%emt 0:04:04]} 11. Bd2 {[%emt 0:03:48]} O-O {[%emt 0:09:34]} 12. a3 {[%emt 0:00:10] The position is equal.} Bxc3 {[%emt 0:00:18]} 13. Bxc3 {[%emt 0:00:26]} Qb6 {[%emt 0:02:16] [#]} 14. h3 $146 {[%emt 0:02:13]} ({Predecessor:} 14. Qd2 Rfd8 15. Qf4 Bxf3 16. Bxf3 Nd5 17. Bxd5 Rxd5 18. Red1 Rad8 19. Rac1 e5 20. Qf3 Nxd4 21. Bxd4 Rxd4 22. Rxd4 Qxd4 {0-1 (53) Villalba,M (1817)-Salinas Herrera,P Federacion 2007}) 14... Bxf3 {[%emt 0:11:07]} 15. Bxf3 {[%emt 0:00:07]} Rfd8 {[%emt 0:00:16][%cal Rc6d4] Prevents d5.} 16. Bxc6 {[%emt 0:19:24]} Qxc6 {[%emt 0:01:35]} 17. Re5 {[%emt 0:02:54]} Rd5 {[%emt 0:07:11]} 18. Qf3 {[%emt 0:01:23]} Rc8 {[%emt 0:02:29]} 19. Rae1 {[%emt 0:00:28]} ({Better is} 19. Rc1 $15) 19... Rxe5 $17 {[%emt 0:03:57]} 20. dxe5 {[%emt 0:01:40]} Qxf3 {[%emt 0:00:17]} 21. gxf3 {[%emt 0:00:04][%mdl 4096] Endgame KRB-KRN} Nd5 {[%emt 0:00:09]} 22. Bd2 {[%emt 0:00:33]} Rc2 {[%emt 0:01:35]} 23. Rc1 {[%emt 0:00:03]} Rxc1+ {[%emt 0:01:13]} 24. Bxc1 {[%emt 0:00:01] KB-KN} Kf8 {[%emt 0:00:41]} (24... h6 $17 25. Be3 b6) 25. Kf1 {[%emt 0:02:04]} Ke8 {[%emt 0:01:53]} (25... h6 $17) 26. Ke2 $11 {[%emt 0:00:11]} Kd7 {[%emt 0:01:19]} 27. Kd3 {[%emt 0:00:12]} Kc6 {[%emt 0:02:28]} 28. Bd2 {[%emt 0:05:14]} Kb5 {[%emt 0:07:03]} 29. b3 $1 {[%emt 0:00:22]} Kc5 {[%emt 0:13:21]} 30. Be3+ {[%emt 0:02:36]} Nxe3 {[%emt 0:08:47] Weighted Error Value: White=0.18 (very precise) /Black=0.12 (very precise)} (30... Kc6 $1 $15) 1/2-1/2

[Event "Dutch Open 2022"]
[Site "Dieren"]
[Date "2022.07.29"]
[Round "4.16"]
[White "Roorda, Thijs"]
[Black "De Boer, Bas"]
[Result "1/2-1/2"]
[ECO "D46"]
[WhiteElo "2113"]
[BlackElo "2136"]
[Annotator "TA"]
[PlyCount "43"]
[EventDate "2022.07.14"]
[EventType "swiss"]
[EventCountry "NED"]
[SourceTitle "playchess.com"]
[Source "ChessBase"]
[SourceQuality "1"]
[TimeControl "40/5400+30:1800+30"]

{[%evp 16,43,0,6,37,35,58,59,51,58,77,96,87,77,75,79,184,37,29,41,42,38,54,31,31,30,31,14,20,12]} 1. Nf3 {[%emt 0:00:04]} d5 {[%emt 0:00:35]} 2. e3 {[%emt 0:00:06]} Nf6 {[%emt 0:01:23]} 3. c4 {[%emt 0:00:09]} c6 {[%emt 0:02:26]} 4. d4 {[%emt 0:00:13]} e6 {[%emt 0:03:45]} 5. Nbd2 {[%emt 0:00:12]} Nbd7 {[%emt 0:01:01]} 6. Bd3 {[%emt 0:00:10]} Be7 {[%emt 0:01:12]} 7. O-O {[%emt 0:00:36]} O-O {[%emt 0:00:20]} 8. e4 {[%emt 0:00:27] 8.b3 is not played anymore.} dxe4 {[%emt 0:03:32]} 9. Nxe4 {[%emt 0:00:07]} h6 {[%emt 0:06:37] D46: Semi-Slav: 5 e3 Nbd7 6 Bd3, Black avoids the Meran.} 10. Qe2 {[%emt 0:04:01] [#]} Re8 $146 {[%emt 0:06:04]} ({Predecessor:} 10... Nxe4 11. Bxe4 Nf6 12. Bc2 b6 13. b3 a5 14. Bb2 a4 15. bxa4 Ba6 16. Rad1 Qc8 {1-0 (62) Stoyanov,T (2388)-Bychkov,V (2303) Chess.com INT 2020}) 11. b3 {[%emt 0:07:35]} c5 {[%emt 0:15:41] White is slightly better.} 12. Bb2 {[%emt 0:04:11]} Nxe4 {[%emt 0:07:07]} 13. Bxe4 {[%emt 0:00:30]} cxd4 {[%emt 0:02:23]} 14. Nxd4 {[%emt 0:03:36]} Nf6 {[%emt 0:04:15]} 15. Rad1 {[%emt 0:07:26] 0x0.00198b52d298dp-1022s more active pieces. The black rooks are badly placed.} Nxe4 {[%emt 0:02:48] [#]} (15... Qb6 $16 {was necessary.}) 16. Nc6 {[%emt 0:01:05]} ({Much less strong is} 16. Qxe4 $6 Qb6 $16) (16. Nxe6 $1 $18 Bxe6 17. Rxd8 Raxd8 18. Qxe4) 16... Qc7 $14 {[%emt 0:02:48]} 17. Nxe7+ {[%emt 0:00:19]} Rxe7 {[%emt 0:04:44]} 18. Qxe4 {[%emt 0:00:27] Hoping for Be5.} e5 {[%emt 0:06:59]} 19. h3 {[%emt 0:25:28]} f6 $1 {[%emt 0:08:32]} 20. Ba3 {[%emt 0:03:29]} Re8 {[%emt 0:02:07]} 21. Bd6 {[%emt 0:02:17]} Qf7 {[%emt 0:00:16]} 22. Rfe1 {[%emt 0:02:01] Weighted Error Value: White=0.32/Black=0.14 (very precise)} 1/2-1/2

[Event "Dutch Open 2022"]
[Site "Dieren"]
[Date "2022.07.30"]
[Round "5.1"]
[White "Elgersma, Onno"]
[Black "Lahaye, Rick"]
[Result "0-1"]
[ECO "B51"]
[WhiteElo "2316"]
[BlackElo "2417"]
[Annotator "TA"]
[PlyCount "122"]
[EventDate "2022.07.14"]
[EventType "swiss"]
[EventCountry "NED"]
[SourceTitle "playchess.com"]
[Source "ChessBase"]
[SourceQuality "1"]
[TimeControl "40/5400+30:1800+30"]

{[%evp 16,122,40,37,39,37,40,40,42,40,40,40,40,36,45,41,50,40,51,39,55,60,79,57,76,73,63,64,61,55,50,44,59,37,36,24,41,35,26,37,61,52,100,106,60,0,0,-9,-3,-79,-88,-81,-85,-87,-87,-87,-87,-62,-73,-87,-87,-93,-87,-75,0,-415,-431,-431,-420,-528,-520,-540,-498,-3943,-2944,-923,-525,-497,-495,-710,-690,-663,-676,-663,-633,-642,-652,-841,-725,-968,-949,-909,-885,-750,-744,-29964,-29967,-29965,-12438,-29973,-29975,-29975,-29976,-29983,-29983,-29986,-29984,-29989,-657]} 1. e4 {[%emt 0:00:06]} c5 {[%emt 0:00:18]} 2. Nf3 {[%emt 0:00:13]} d6 {[%emt 0:00:11]} 3. Bb5+ {[%emt 0:00:16]} Nd7 {[%emt 0:00:17]} 4. O-O {[%emt 0:00:49]} Ngf6 {[%emt 0:00:26]} 5. Re1 {[%emt 0:00:05]} a6 {[%emt 0:00:15]} 6. Bf1 {[%emt 0:00:08]} b6 {[%emt 0:00:21]} 7. d4 {[%emt 0:00:20]} cxd4 {[%emt 0:00:17]} 8. Nxd4 {[%emt 0:00:06]} Bb7 {[%emt 0:00:17]} 9. f3 {[%emt 0:00:13]} Qc7 {[%emt 0:00:42] B51: Sicilian: Moscow Variation (3 Bb5+) without 3...Bd7.} 10. c4 {[%emt 0:02:01]} e6 {[%emt 0:00:12]} 11. Be3 {[%emt 0:01:10]} Be7 {[%emt 0:00:16] White is slightly better.} 12. Nc3 {[%emt 0:00:22]} O-O {[%emt 0:00:46]} 13. Qd2 {[%emt 0:00:55]} Rac8 {[%emt 0:04:18]} 14. Rac1 {[%emt 0:02:40]} Qb8 {[%emt 0:00:35]} 15. Kh1 {[%emt 0:06:20]} Kh8 {[%emt 0:05:26]} 16. Red1 {[%emt 0:12:48]} Rg8 {[%emt 0:07:17] [#]} 17. b4 $146 {[%emt 0:24:06]} ({Predecessor:} 17. b3 Ba8 18. Nc2 Ne5 19. Bg5 Rgd8 20. Ne3 Ng6 21. Nc2 h6 22. Be3 {0-1 (37) Shekhter,D (2200)-Sax,G (2521) Seefeld 2003}) 17... Bd8 {[%emt 0:32:17]} 18. Nb3 {[%emt 0:12:38]} Bc7 {[%emt 0:01:42]} 19. Bf4 {[%emt 0:01:23][%cal Rf4d6]} Ne5 {[%emt 0:01:05]} 20. Bxe5 {[%emt 0:03:25]} dxe5 {[%emt 0:00:02]} 21. c5 {[%emt 0:00:16]} Rgd8 {[%emt 0:01:43]} 22. Qf2 {[%emt 0:01:56]} b5 {[%emt 0:14:13]} 23. a4 {[%emt 0:05:59]} (23. Qe2 {seems wilder.} Rxd1 24. Rxd1 Rd8 25. Rxd8+ Qxd8 26. a4) 23... bxa4 {[%emt 0:00:52]} 24. Rxd8+ {[%emt 0:01:14]} (24. Na1 {is more complex.} Rxd1 25. Rxd1 Rd8 26. Qc2) 24... Rxd8 {[%emt 0:00:54]} 25. Nxa4 {[%emt 0:00:07]} Bxe4 $1 {[%emt 0:13:24]} 26. fxe4 {[%emt 0:06:59] aiming for Qe1.} Qxb4 {[%emt 0:00:05]} 27. Qa2 {[%emt 0:00:06]} Qxe4 {[%emt 0:00:07]} 28. Nc3 {[%emt 0:01:21] Pair of Knights!} (28. Bxa6 Qe3 29. Rf1 e4 $17) 28... Qf4 {[%emt 0:03:09]} (28... Qf5 $1 $14) 29. g3 $16 {[%emt 0:01:25]} Qh6 {[%emt 0:02:51]} 30. Qxa6 {[%emt 0:04:09]} (30. Bxa6 e4 $16) (30. Qg2 $14) 30... e4 $11 {[%emt 0:00:57] ...Ng4 is the strong threat.} 31. Qe2 {[%emt 0:03:42] Against Ng4} Bxg3 {[%emt 0:00:20][%cal Of6g4] Threatens to win with ...Ng4!} 32. Rd1 {[%emt 0:01:41]} (32. Rc2 $11 {remains equal.}) 32... Rb8 $1 $17 {[%emt 0:01:54][%mdl 1024] And now ...Ng4 would win. Black has strong compensation.} 33. Qg2 {[%emt 0:04:05]} Bf4 {[%emt 0:01:59]} 34. Nd4 {[%emt 0:02:07] [#]} Ng4 $1 {[%emt 0:00:18][%cal Rg4h2]} 35. Nc6 {[%emt 0:00:39] [#]} (35. Nxe4 $2 Ne3 36. Nd6 Bxd6 $19) 35... Rf8 {[%emt 0:00:29][%cal Rg4h2]} 36. Rd8 {[%emt 0:00:44]} Rxd8 {[%emt 0:00:48] Chess con chili.} 37. Nxd8 {[%emt 0:00:02] [#]} Kg8 {[%emt 0:07:57][%cal Rg4h2]} 38. h3 {[%emt 0:01:54]} (38. Nxe4 $2 Nxh2 39. Qh3 Nxf1 $19) 38... Ne3 {[%emt 0:00:00]} 39. Qf2 {[%emt 0:00:07] [#]} Qg5 $40 {[%emt 0:00:00][%mdl 128] Black mounts an attack.} (39... Qf6 $1 $17 {White must now prevent ...g5.} 40. Nc6 (40. Nxe4 Qe5 $17) 40... g5) 40. Nc6 $2 {[%emt 0:01:13][%mdl 8192] White is now going downhill.} (40. Nxe4 Qe5 41. Bg2 Nxg2 42. Qxg2 Qa1+ 43. Qg1 Qa4 44. Nf6+ Kf8 45. Nxe6+ (45. Nxh7+ $2 Ke8 $19) 45... fxe6 46. Nxh7+ Kg8 47. Nf6+ Kf7 $17) (40. Ne2 $1 $11 {and White is okay.}) 40... Nxf1 $19 {[%emt 0:00:42]} 41. Nxe4 {[%emt 0:16:01]} ({Not} 41. Qxf1 $2 Qg3 42. Qg2 Qxc3) 41... Ng3+ {[%emt 0:00:13]} 42. Nxg3 {[%emt 0:06:30]} Bxg3 {[%emt 0:09:39][%mdl 4096] Endgame KQB-KQN} 43. Qd4 {[%emt 0:01:39]} h6 {[%emt 0:00:26] Strongly threatening ...Bc7.} 44. Qd7 {[%emt 0:02:59]} (44. Qd8+ $142 Qxd8 45. Nxd8) 44... Qf4 {[%emt 0:02:23][%cal Rf4f1]} 45. Qd3 {[%emt 0:01:16] Inhibits Qf1+.} Qc1+ {[%emt 0:03:26]} (45... Qf2 $2 {gets mated.} 46. Ne7+ Kh8 47. Qd8+ Kh7 48. Qg8#) 46. Kg2 {[%emt 0:00:01] White threatens Ne7+ and mate.} Qxc5 {[%emt 0:00:06]} ({Don't blunder} 46... Bc7 $2 47. Qd4 $19) 47. Qd8+ {[%emt 0:00:05]} (47. Nd4 $142) 47... Kh7 {[%emt 0:00:06]} 48. Qd3+ {[%emt 0:00:03]} f5 {[%emt 0:00:25]} 49. Nd4 {[%emt 0:01:48]} Be5 {[%emt 0:00:41]} 50. Nf3 {[%emt 0:00:44]} Bf6 {[%emt 0:00:17]} 51. Qd7 {[%emt 0:00:26]} Qc2+ {[%emt 0:00:43]} 52. Kf1 {[%emt 0:00:30]} Qe4 {[%emt 0:00:30]} 53. Qd1 {[%emt 0:00:19]} Qf4 {[%emt 0:01:16]} 54. Kg2 {[%emt 0:00:11]} e5 {[%emt 0:00:21][%cal Be6e5,Be5e4][%mdl 32]} 55. Qe2 {[%emt 0:00:40]} e4 {[%emt 0:00:16]} 56. Nd2 {[%emt 0:00:07]} Be5 {[%emt 0:01:55] ( -> ...Qh2+)} 57. Nf1 {[%emt 0:00:04]} Qg5+ {[%emt 0:00:09] Black mates.} 58. Kh1 {[%emt 0:00:51]} Bd4 {[%emt 0:00:20][%csl Gd4][%cal Rg5g1]} 59. Qh2 {[%emt 0:00:22]} f4 {[%emt 0:01:19]} 60. h4 {[%emt 0:00:16]} Qg4 {[%emt 0:00:24]} 61. h5 {[%emt 0:00:15]} Qf3+ {[%emt 0:00:42] Weighted Error Value: White=0.41/Black=0.28 (precise)} (61... f3 $142 62. Qg3 Qxg3 63. Nxg3 e3 64. Kh2 e2 65. Kh3 e1=Q 66. Kg4 Be5 67. Kf5 Bxg3 68. Kg4 f2 69. Kh3 f1=Q+ 70. Kg4 Qf4+ 71. Kh3 Qh1#) 0-1